bitfinex/quotes_ETHUSD_20250422
["timestamp","ask_amount","ask_price","bid_price","bid_amount"]
[1745348592921,18.50038828,1700.3,1699.9,6.3832]
[1745348593447,7.73170609,1700.2,1699.9,6.3832]
[1745348593611,13.61363839,1700.2,1699.9,6.3832]
[1745348593813,7.73170609,1700.2,1699.9,6.3832]
[1745348594033,7.73170609,1700.2,1699.9,1.2852]
[1745348594265,7.73170609,1700.2,1699.9,0.5]
[1745348594438,11.7501382,1700.3,1699.9,0.5]
[1745348594439,5.05548476,1700.3,1699.9,0.5]
[1745348594945,10.93680522,1700.3,1699.9,0.5]
[1745348595346,5.8819646,1700.2,1699.9,0.5]
[1745348595539,6.69522754,1700.1,1699.9,0.5]
[1745348596043,5.88202754,1700.1,1699.9,0.5]
[1745348596545,5.88203164,1700.1,1699.9,0.5]
[1745348596754,5.8819646,1700.2,1699.9,0.5]
[1745348596925,11.76388122,1700.2,1699.9,0.5]
[1745348597746,13.72499682,1700.2,1699.9,0.5]
[1745348597950,13.72495205,1700.2,1699.9,0.5]
[1745348598157,13.72494125,1700.2,1699.9,0.5]
[1745348598360,7.84302463,1700.2,1699.9,0.5]
[1745348598954,1.9611156,1700.2,1699.9,0.5]
[1745348599270,0.197859,1700.2,1699.9,1.292]
[1745348599654,6.07973197,1700.2,1699.9,1.292]
[1745348600033,5.88219635,1700.1,1699.9,0.5]
[1745348600237,6.07973197,1700.2,1699.9,0.5]
[1745348600558,0.197859,1700.2,1699.9,1.292]
[1745348600762,6.0796145,1700.2,1699.9,1.292]
[1745348601141,6.0796145,1700.2,1699.9,0.5]
[1745348601142,11.96157721,1700.2,1699.9,0.5]
[1745348601355,6.0796145,1700.2,1699.9,0.5]
[1745348601553,0.197859,1700.2,1699.9,0.5]
[1745348601728,6.07954527,1700.2,1699.9,0.5]
[1745348601924,11.9614653,1700.2,1699.9,0.5]
[1745348602443,6.07954527,1700.2,1699.9,0.5]
[1745348603576,0.197859,1700.2,1699.9,0.5]
[1745348604163,6.0796642,1700.2,1699.9,0.5]
[1745348605267,0.197859,1700.2,1700.0,0.792]
[1745348605473,0.197859,1700.2,1700.1,1.342]
[1745348605678,0.197859,1700.2,1700.1,4.342]
[1745348607373,0.197859,1700.2,1700.1,9.44]
[1745348608166,0.197859,1700.2,1700.1,4.342]
[1745348608365,0.197859,1700.2,1700.1,9.44]
[1745348608565,0.197859,1700.2,1700.1,0.792]
[1745348608742,6.07962375,1700.2,1700.0,5.098]
[1745348609076,0.60796237,1700.1,1699.9,1.2661]
[1745348609305,11.96156939,1700.2,1699.9,1.2661]
[1745348609477,6.69372237,1700.1,1699.9,0.5]
[1745348609643,5.88212237,1700.1,1699.9,0.5]
[1745348609843,6.07962375,1700.2,1699.9,0.5]
[1745348610143,0.197859,1700.2,1700.0,0.7661]
[1745348610359,0.197859,1700.2,1700.1,0.55]
[1745348610879,0.197859,1700.2,1700.1,0.98161]
[1745348611080,0.197859,1700.2,1700.1,1.04042092]
[1745348611268,0.197859,1700.2,1700.1,0.98161]
[1745348611585,0.197859,1700.2,1700.1,4.74771]
[1745348612343,0.197859,1700.2,1700.1,16.52696624]
[1745348612756,0.197859,1700.2,1700.1,10.6449593]
[1745348613160,0.197859,1700.2,1700.1,16.58577204]
[1745348613361,0.197859,1700.2,1700.1,16.52696624]
[1745348613569,0.197859,1700.2,1700.1,10.6449593]
[1745348614151,0.197859,1700.2,1700.1,15.7429593]
[1745348615791,0.197859,1700.2,1700.1,10.6449593]
[1745348615959,0.197859,1700.2,1700.1,15.7429593]
[1745348617798,0.197859,1700.2,1700.1,9.84571]
[1745348618577,0.197859,1700.2,1700.1,4.74771]
[1745348618778,0.197859,1700.2,1700.1,9.84371]
[1745348625997,0.197859,1700.2,1700.1,4.74771]
[1745348626201,0.197859,1700.2,1700.1,9.84371]
[1745348626413,0.197859,1700.2,1699.9,17.66221349]
[1745348626414,0.197859,1700.2,1699.9,5.8582]
[1745348626613,0.197859,1700.2,1699.9,5.096]
[1745348627111,0.197859,1700.2,1700.0,1.3710187]
[1745348627422,0.197859,1700.2,1700.1,9.64420694]
[1745348627719,0.197859,1700.2,1700.1,3.7622]
[1745348627888,0.197859,1700.2,1700.1,5.36985804]
[1745348628380,0.197859,1700.2,1700.1,11.81710734]
[1745348628794,0.197859,1700.2,1700.1,17.69911428]
[1745348630217,0.197859,1700.2,1700.1,11.81710734]
[1745348630783,0.197859,1700.2,1700.1,17.69911428]
[1745348631413,0.197859,1700.2,1700.1,11.81710734]
[1745348631802,0.197859,1700.2,1700.1,17.69911428]
[1745348632501,0.197859,1700.2,1700.1,11.81710734]
[1745348638627,0.197859,1700.2,1700.1,17.69911428]
[1745348638833,0.197859,1700.2,1700.1,11.81710734]
[1745348639205,0.197859,1700.2,1700.1,17.69911428]
[1745348639406,0.197859,1700.2,1700.1,11.81710734]
[1745348642635,0.197859,1700.2,1700.1,17.69911428]
[1745348642937,0.197859,1700.2,1700.1,11.81710734]
[1745348645448,0.197859,1700.2,1700.1,3.0]
[1745348645603,0.197859,1700.2,1700.1,8.096]
[1745348645940,0.197859,1700.2,1700.1,8.646]
[1745348646330,0.8314,1700.1,1700.0,3.0]
[1745348646642,0.8314,1700.1,1699.9,5.096]
[1745348647006,0.8314,1700.1,1700.0,0.55]
[1745348647205,0.8314,1700.1,1699.9,5.096]
[1745348647407,0.8314,1700.1,1700.0,0.55]
[1745348648444,0.197859,1700.2,1700.0,4.1146]
[1745348649733,0.197859,1700.2,1700.1,0.05880911]
[1745348649935,0.197859,1700.2,1700.1,3.60880911]
[1745348650228,0.197859,1700.2,1700.1,3.55]
[1745348650430,0.197859,1700.2,1700.1,10.2531097]
[1745348650611,0.197859,1700.2,1700.1,12.51282221]
[1745348650808,0.197859,1700.2,1700.1,6.57201251]
[1745348651111,0.197859,1700.2,1700.1,9.4073]
[1745348652662,0.197859,1700.2,1700.1,4.3123]
[1745348652830,0.197859,1700.2,1700.1,9.4063]
[1745348655163,0.197859,1700.2,1700.1,9.46510591]
[1745348657153,0.197859,1700.2,1700.1,15.34711285]
[1745348657453,0.197859,1700.2,1700.1,19.25063746]
[1745348662249,0.197859,1700.2,1700.1,19.83743746]
[1745348664474,0.8049,1700.8,1700.7,0.55]
[1745348664769,0.8049,1701.2,1700.9,9.42908674]
[1745348665081,0.8049,1701.2,1701.0,0.94290867]
[1745348665237,0.8049,1701.5,1701.1,20.4196819]
[1745348665437,0.8049,1701.5,1701.2,3.0]
[1745348665677,0.8049,1701.5,1701.2,3.43958334]
[1745348666390,0.8049,1701.5,1701.2,5.60713026]
[1745348666893,0.8049,1701.7,1701.5,0.55]
[1745348667056,0.8049,1701.7,1701.6,5.093]
[1745348667255,0.8049,1701.7,1701.5,5.093]
[1745348667456,0.8049,1701.7,1701.3,3.55]
[1745348667671,0.8049,1701.7,1701.4,5.093]
[1745348668066,0.8049,1701.7,1701.5,0.60876799]
[1745348668293,0.8049,1701.9,1701.5,9.50601729]
[1745348668478,0.8049,1701.9,1701.5,3.55]
[1745348668681,5.87615936,1701.8,1701.2,0.43958334]
[1745348668997,0.8049,1701.7,1701.3,5.643]
[1745348669159,0.8049,1701.7,1701.5,0.55]
[1745348669793,5.05548476,1702.0,1701.5,0.55]
[1745348670093,0.8049,1701.9,1701.5,0.55]
[1745348670670,0.8049,1701.9,1701.6,5.092]
[1745348670671,6.68081974,1701.9,1701.6,5.092]
[1745348670869,5.87631945,1701.8,1701.2,0.44373436]
[1745348671070,6.68139326,1701.7,1701.3,5.092]
[1745348671270,5.87777459,1701.4,1700.9,0.43369951]
[1745348671515,0.8049,1701.3,1700.8,24.477]
[1745348671671,0.8049,1701.3,1700.7,3.0]
[1745348671869,0.8049,1701.2,1700.7,0.97133493]
[1745348672107,0.8049,1701.2,1700.8,5.092]
[1745348672510,0.8049,1701.2,1700.9,0.05878603]
[1745348672801,0.8049,1701.2,1700.8,5.092]
[1745348673901,0.8049,1701.2,1700.8,5.642]
[1745348676071,0.8049,1701.1,1700.8,5.092]
[1745348680504,0.8049,1701.1,1700.9,0.55]
[1745348681126,5.05548476,1701.4,1700.9,0.55]
[1745348681295,0.7502,1701.3,1700.9,3.55]
[1745348681497,0.7502,1701.3,1700.9,15.32627992]
[1745348681726,0.7502,1701.3,1701.0,1.53262799]
[1745348683598,0.7502,1701.3,1701.2,0.55]
[1745348684636,0.7502,1701.3,1701.1,5.091]
[1745348684932,0.7502,1701.3,1700.8,8.091]
[1745348685488,0.7502,1701.3,1700.9,0.55]
[1745348685692,1.41297439,1701.3,1700.9,0.55]
[1745348686632,0.7502,1701.3,1700.9,0.55]
[1745348687000,0.7502,1701.2,1700.9,0.55]
[1745348687846,0.7502,1701.2,1700.7,3.55]
[1745348688136,0.7502,1701.2,1700.9,0.55]
[1745348691047,0.7502,1701.2,1701.0,0.05878396]
[1745348691535,0.7502,1701.2,1700.9,3.55]
[1745348691741,0.7502,1701.2,1701.0,0.355]
[1745348694001,5.05548476,1701.5,1701.0,0.355]
[1745348694335,0.7502,1701.4,1701.0,0.355]
[1745348694535,0.7502,1701.4,1701.1,0.55]
[1745348697115,0.7502,1701.4,1701.1,5.641]
[1745348697319,7.79613694,1701.4,1701.0,5.641]
[1745348697558,7.79613694,1701.4,1700.9,3.0]
[1745348697741,0.7648,1701.3,1701.0,5.091]
[1745348701361,0.7648,1701.3,1701.0,5.14978283]
[1745348701663,5.05548476,1701.5,1701.1,0.55]
[1745348701977,12.79080113,1701.5,1701.1,0.55]
[1745348703269,18.66824523,1701.5,1701.1,0.55]
[1745348703677,18.66824725,1701.5,1701.1,0.55]
[1745348703843,12.79080113,1701.5,1701.1,0.55]
[1745348704358,18.66827306,1701.5,1701.1,0.55]
[1745348704570,5.87756076,1701.4,1701.1,0.55]
[1745348704771,12.79080113,1701.5,1701.1,0.55]
[1745348705271,5.87756042,1701.4,1701.1,0.55]
[1745348705671,12.79090057,1701.5,1701.1,1.3743]
[1745348706680,5.82028476,1701.7,1701.3,0.55]
[1745348707067,5.876847,1701.6,1701.3,0.55]
[1745348707579,17.57373772,1701.7,1701.3,0.55]
[1745348708084,11.69698521,1701.7,1701.3,0.55]
[1745348709086,11.68141035,1701.7,1701.3,0.55]
[1745348709275,5.87684399,1701.6,1701.3,0.55]
[1745348709459,11.68141035,1701.7,1701.3,0.55]
[1745348711374,17.55817063,1701.7,1701.3,0.55]
[1745348711584,5.8047099,1701.7,1701.3,0.55]
[1745348711881,5.0399099,1701.7,1701.5,0.55]
[1745348712080,5.0399099,1701.7,1701.5,1.83778923]
[1745348712387,11.69968725,1701.7,1701.2,4.19530079]
[1745348712550,11.69968725,1701.7,1701.4,5.089]
[1745348712750,5.8231099,1701.7,1701.4,5.089]
[1745348713144,5.0399099,1701.7,1701.4,5.089]
[1745348713346,10.91647283,1701.7,1701.5,0.55]
[1745348713559,10.91647283,1701.7,1701.4,5.089]
[1745348714079,5.0399099,1701.7,1701.4,5.089]
[1745348714286,5.0399099,1701.7,1701.4,5.6529]
[1745348714461,10.91643642,1701.7,1701.4,5.6529]
[1745348714658,5.87691632,1701.6,1701.3,3.55]
[1745348714973,0.7832,1701.3,1701.0,0.754]
[1745348715155,0.7832,1701.3,1701.0,5.843]
[1745348715361,5.8231099,1701.4,1701.0,5.843]
[1745348715560,5.0399099,1701.4,1701.1,1.19308092]
[1745348715785,5.0399099,1701.4,1701.2,0.754]
[1745348716388,5.0399099,1701.4,1701.1,1.1343]
[1745348717388,10.91762435,1701.4,1701.0,0.754]
[1745348717576,0.805,1701.3,1701.1,5.089]
[1745348717973,6.68286934,1701.3,1700.9,3.0]
[1745348718282,0.805,1701.3,1701.0,5.089]
[1745348718494,6.68287148,1701.3,1701.0,5.089]
[1745348719362,0.805,1701.3,1701.0,5.089]
[1745348721486,6.68285828,1701.3,1701.0,5.089]
[1745348721688,6.68285828,1701.3,1700.9,8.089]
[1745348721857,6.68285828,1701.3,1700.9,9.03275]
[1745348722988,0.805,1701.3,1700.9,9.03275]
[1745348723475,6.68293895,1701.3,1700.9,3.94375]
[1745348723671,6.68293895,1701.3,1700.9,8.089]
[1745348724084,5.87885352,1701.1,1700.6,0.7985]
[1745348724275,5.87885352,1701.1,1700.4,1.3859]
[1745348724276,5.87973993,1700.8,1700.4,1.3859]
[1745348724500,6.68516086,1700.7,1700.3,1.3859]
[1745348724655,17.60534223,1700.7,1700.3,3.5874]
[1745348724855,0.805,1700.5,1700.3,0.5874]
[1745348725096,5.8449099,1700.7,1700.3,0.5874]
[1745348725255,11.7248559,1700.7,1700.3,0.5874]
[1745348725688,5.88028086,1700.6,1700.2,5.089]
[1745348726097,11.7248559,1700.7,1700.2,5.089]
[1745348726300,17.60510012,1700.7,1700.3,0.55]
[1745348726506,5.88032035,1700.6,1700.2,0.5089]
[1745348726666,5.88032035,1700.6,1700.1,3.0]
[1745348726872,0.805,1700.4,1700.0,2.1517]
[1745348727104,0.805,1700.4,1700.0,0.7985]
[1745348727412,12.56742042,1700.4,1700.1,5.089]
[1745348727568,12.56742042,1700.4,1700.0,0.55]
[1745348727766,0.805,1700.4,1700.0,6.33472493]
[1745348728271,0.805,1700.4,1700.1,5.09]
[1745348728491,0.805,1700.4,1700.0,1.24472493]
[1745348728671,0.805,1700.4,1700.1,5.09]
[1745348729900,6.68597171,1700.4,1700.1,5.09]
[1745348730271,0.805,1700.4,1700.1,5.09]
[1745348733312,6.68603866,1700.4,1700.0,1.24472493]
[1745348733614,6.68603866,1700.4,1700.0,6.33572493]
[1745348735194,5.88154381,1700.3,1700.0,5.641]
[1745348736328,5.88154381,1700.3,1700.0,0.55]
[1745348736613,11.76312132,1700.3,1699.9,3.5]
[1745348736777,5.88154381,1700.3,1699.9,8.592]
[1745348737478,5.88154381,1700.3,1699.9,10.17577493]
[1745348737678,0.805,1700.4,1700.0,0.55]
[1745348738319,0.805,1700.4,1700.1,0.7731]
[1745348739392,6.68608151,1700.4,1700.0,6.4472493]
[1745348740925,0.805,1700.4,1700.0,6.4472493]
[1745348741130,0.805,1700.4,1700.0,5.33281811]
[1745348741337,0.805,1700.4,1700.0,3.55]
[1745348741338,6.68602054,1700.4,1700.0,3.55]
[1745348741735,0.805,1700.4,1700.0,3.55]
[1745348741896,0.805,1700.4,1700.0,3.60881613]
[1745348742311,11.74712666,1700.5,1700.0,3.60881613]
[1745348742496,5.8664099,1700.5,1700.0,3.55]
[1745348742721,5.8664099,1700.5,1700.0,5.17444062]
[1745348742896,11.74705623,1700.5,1700.0,5.17444062]
[1745348743208,5.88098682,1700.4,1700.0,3.55]
[1745348743404,0.8265,1700.2,1699.9,0.5]
[1745348743608,6.70820514,1700.2,1699.9,8.591]
[1745348743910,5.88214087,1700.1,1699.9,0.5]
[1745348744121,6.7083655,1700.2,1699.9,0.5]
[1745348744292,2.08549009,1700.2,1699.9,0.5]
[1745348744835,5.88230958,1700.1,1699.9,0.5]
[1745348744996,6.70885294,1700.0,1699.9,0.5]
[1745348749145,11.74876284,1700.0,1699.9,0.5]
[1745348753634,11.66786284,1700.0,1699.9,0.5]
[1745348753825,14.01260501,1700.0,1699.9,0.5]
[1745348756579,5.0399099,1700.0,1699.9,0.5]
[1745348756731,5.0399099,1700.0,1699.9,1.2957]
[1745348757329,5.0399099,1700.0,1699.9,0.5]
[1745348758231,10.92226284,1700.0,1699.9,0.5]
[1745348760274,5.0399099,1700.0,1699.9,0.5]
[1745348760473,5.0399099,1700.0,1699.9,1.2957]
[1745348760853,5.0399099,1700.4,1700.0,0.55]
[1745348761039,5.0399099,1700.4,1700.2,0.55]
[1745348761239,5.0399099,1700.4,1700.1,0.7957]
[1745348761544,10.92089743,1700.4,1700.1,2.02929493]
[1745348761861,5.0399099,1700.4,1700.1,2.02929493]
[1745348762259,5.0399099,1700.4,1700.2,0.55]
[1745348762435,0.30679367,1700.7,1700.4,0.55]
[1745348762639,0.30679367,1700.7,1700.4,5.643]
[1745348762841,0.30679367,1700.7,1700.4,6.28687]
[1745348763352,5.87973159,1700.8,1700.4,6.28687]
[1745348766388,5.8800683,1700.7,1700.4,6.28687]
[1745348766688,5.87973159,1700.8,1700.4,5.643]
[1745348767790,5.87863799,1701.1,1700.6,6.4472493]
[1745348767969,10.91829165,1701.2,1700.7,0.7957]
[1745348768171,11.22499102,1701.2,1700.7,3.85449167]
[1745348768368,11.22499102,1701.2,1700.7,4.88466577]
[1745348768369,10.91829165,1701.2,1700.7,4.88466577]
[1745348768892,5.87958607,1700.8,1700.4,5.8877]
[1745348769064,11.75942056,1700.8,1700.4,3.7957]
[1745348769260,5.87889476,1701.0,1700.4,5.8867]
[1745348769583,5.87991964,1700.8,1700.4,5.8867]
[1745348769786,5.87993679,1700.7,1700.4,5.8867]
[1745348771112,5.88084702,1700.5,1700.2,0.767]
[1745348771408,5.88084702,1700.5,1699.9,0.5]
[1745348771409,5.88131506,1700.3,1699.9,6.3972493]
[1745348771716,5.88131506,1700.3,1700.0,0.767]
[1745348771919,5.88131506,1700.3,1700.0,5.857]
[1745348773124,5.88131506,1700.3,1700.0,5.856]
[1745348773684,5.88113968,1700.4,1700.0,5.856]
[1745348774016,7.13880754,1700.4,1700.0,5.856]
[1745348775407,18.05994639,1700.4,1700.0,5.856]
[1745348775616,12.17871744,1700.4,1700.0,5.856]
[1745348776715,6.29757776,1700.4,1700.0,5.856]
[1745348776901,5.88177308,1700.2,1700.0,5.857]
[1745348777102,10.92101941,1700.4,1700.0,5.09]
[1745348777302,5.0399099,1700.4,1700.0,5.09]
[1745348777503,5.0399099,1700.4,1700.1,0.767]
[1745348779745,5.0399099,1700.4,1700.3,1.317]
[1745348779947,5.0399099,1700.7,1700.3,1.80958134]
[1745348780305,10.91987526,1700.7,1700.3,1.80958134]
[1745348780540,5.0399099,1700.7,1700.3,1.80958134]
[1745348781707,10.9198849,1700.7,1700.3,1.80958134]
[1745348783728,10.9198849,1700.7,1700.3,1.317]
[1745348783930,5.88096918,1700.4,1700.3,0.767]
[1745348784109,5.88154757,1700.3,1699.9,1.267]
[1745348784302,10.92145747,1700.3,1700.0,5.089]
[1745348784741,12.60171353,1700.3,1699.9,1.267]
[1745348784940,18.48336069,1700.3,1699.9,6.356]
[1745348785238,12.60171353,1700.3,1699.9,6.356]
[1745348785747,10.92145747,1700.3,1699.9,6.356]
[1745348787328,5.88169787,1700.2,1699.9,6.356]
[1745348787514,10.92145747,1700.3,1699.9,6.356]
[1745348788034,5.88168672,1700.2,1699.9,6.356]
[1745348788232,10.92145747,1700.3,1699.9,6.356]
[1745348788432,10.92139426,1700.3,1699.9,1.267]
[1745348789137,16.8029852,1700.3,1699.9,0.767]
[1745348789445,5.88260867,1700.0,1699.6,5.916]
[1745348790010,5.88219872,1700.1,1699.6,5.916]
[1745348790207,5.88219872,1700.1,1699.6,6.5076]
[1745348790426,11.76447719,1700.1,1699.6,6.5076]
[1745348790746,11.76444744,1700.1,1699.6,6.5076]
[1745348791350,5.88219872,1700.1,1699.6,6.5076]
[1745348791847,11.76445267,1700.1,1699.6,6.5076]
[1745348792558,5.0399099,1700.4,1700.0,0.826]
[1745348792733,10.9210239,1700.4,1700.0,5.916]
[1745348793952,5.0399099,1700.4,1700.0,5.916]
[1745348794266,5.0399099,1700.4,1700.1,0.55]
[1745348795772,5.88131506,1700.3,1700.0,5.916]
[1745348796137,5.88131506,1700.3,1700.0,6.5626]
[1745348796369,10.92104259,1700.4,1700.0,6.5626]
[1745348796370,10.92104259,1700.4,1700.0,1.4726]
[1745348796527,10.92104259,1700.4,1700.0,6.5626]
[1745348796729,16.8022549,1700.4,1700.0,6.5626]
[1745348796960,5.0399099,1700.4,1700.0,6.5626]
[1745348797141,10.92091056,1700.4,1700.1,0.65626]
[1745348797574,10.92108507,1700.4,1700.1,0.65626]
[1745348797776,5.88136479,1700.3,1700.0,0.826]
[1745348797938,5.88136479,1700.3,1700.1,5.09]
[1745348799779,5.88166098,1700.2,1700.0,5.916]
[1745348800340,5.88166098,1700.2,1700.0,0.826]
[1745348800541,5.88200694,1700.1,1699.8,11.7393493]
[1745348800841,5.88200694,1700.1,1699.8,13.33336023]
[1745348801158,5.88166098,1700.2,1699.8,7.43611093]
[1745348801357,5.882525,1700.0,1699.8,5.8411]
[1745348801652,5.882525,1700.0,1699.8,0.7521]
[1745348802033,5.882525,1700.0,1699.7,5.089]
[1745348802235,5.882525,1700.0,1699.7,5.878]
[1745348802436,5.8011099,1700.1,1699.7,0.789]
[1745348802766,11.76588825,1699.9,1699.5,3.789]
[1745348802938,5.88293927,1699.9,1699.6,5.089]
[1745348803264,5.88293927,1699.9,1699.5,0.789]
[1745348803265,5.88363227,1699.7,1699.5,0.789]
[1745348803464,5.88408355,1699.5,1699.4,0.5]
[1745348803670,11.76791609,1699.6,1699.4,0.5]
[1745348803871,5.88408355,1699.5,1699.4,0.5]
[1745348804642,7.82207535,1699.5,1699.4,0.5]
[1745348805236,12.86198525,1699.5,1699.4,0.5]
[1745348806673,16.29281512,1699.5,1699.4,0.5]
[1745348807245,5.88652711,1698.8,1698.6,0.789]
[1745348807877,5.88640331,1698.9,1698.6,0.789]
[1745348808046,7.51763679,1698.9,1698.6,0.789]
[1745348808653,5.88668001,1698.8,1698.5,3.3971297]
[1745348808891,13.40403659,1698.9,1698.5,3.3971297]
[1745348809089,5.88651048,1698.8,1698.5,3.3971297]
[1745348809296,5.88720122,1698.6,1698.5,0.3971297]
[1745348809590,6.47592134,1698.6,1698.5,0.3971297]
[1745348813161,4.5399099,1698.8,1698.5,1.1861297]
[1745348813357,10.42653257,1698.8,1698.5,1.1861297]
[1745348813986,4.5399099,1698.8,1698.5,1.1861297]
[1745348815694,4.5399099,1698.8,1698.5,6.2781297]
[1745348815898,4.5399099,1699.3,1698.8,0.55]
[1745348816098,0.58848818,1699.2,1698.8,6.4472493]
[1745348816290,10.42470751,1699.3,1698.9,0.8187]
[1745348816801,5.88533486,1699.2,1698.9,0.8187]
[1745348817297,10.42475226,1699.3,1698.7,3.7669]
[1745348817503,5.88548491,1699.1,1698.7,0.7669]
[1745348817869,5.88610388,1699.0,1698.7,0.7669]
[1745348818071,6.47471427,1699.0,1698.7,0.7669]
[1745348818302,0.58861039,1699.0,1698.7,0.7669]
[1745348818489,6.47444747,1699.0,1698.7,0.7669]
[1745348819003,12.36052689,1699.0,1698.7,0.7669]
[1745348819163,6.47444747,1699.0,1698.7,0.7669]
[1745348819363,5.12852029,1699.0,1698.7,0.7669]
[1745348820370,4.5399099,1699.0,1698.7,0.7669]
[1745348820574,4.5399099,1699.0,1698.8,0.55]
[1745348821071,4.5399099,1699.0,1698.8,6.50610811]
[1745348821279,4.5399099,1699.3,1699.0,0.55]
[1745348821506,4.5399099,1699.3,1699.0,11.5402493]
[1745348823973,4.5399099,1699.3,1699.0,5.643]
[1745348825807,5.88519561,1699.2,1699.0,5.093]
[1745348826305,5.88551405,1699.1,1698.9,5.8589]
[1745348826494,5.88519561,1699.2,1698.9,5.8589]
[1745348827080,10.87887772,1699.3,1698.9,5.8589]
[1745348827302,4.99390089,1699.3,1698.9,0.7669]
[1745348827473,4.99390089,1699.3,1698.9,5.8589]
[1745348827675,4.5399099,1699.3,1698.9,5.8589]
[1745348827977,10.42483296,1699.3,1698.9,5.8589]
[1745348828385,4.5399099,1699.3,1698.9,5.8589]
[1745348828814,4.5399099,1699.3,1699.0,0.55]
[1745348829319,4.5399099,1699.6,1699.2,0.55]
[1745348829813,5.88419367,1699.5,1699.1,0.7669]
[1745348829996,5.88419367,1699.5,1699.2,5.092]
[1745348830380,5.88408355,1699.5,1699.1,0.7669]
[1745348830582,5.88455904,1699.4,1699.2,5.092]
[1745348830815,7.0614233,1699.4,1699.2,5.092]
[1745348831116,1.17686426,1699.4,1699.2,5.092]
[1745348831302,5.88408355,1699.5,1699.1,5.8589]
[1745348831710,10.42399345,1699.5,1699.1,5.8589]
[1745348832718,16.30834533,1699.5,1699.1,5.8589]
[1745348833184,5.88444837,1699.4,1699.1,5.8589]
[1745348833784,4.5399099,1699.3,1698.9,0.8275]
[1745348834005,5.88581518,1699.0,1698.7,0.8275]
[1745348834217,11.77286405,1698.9,1698.7,0.8275]
[1745348834431,5.88708598,1698.7,1698.5,5.4891297]
[1745348834765,4.5399099,1698.9,1698.5,5.4891297]
[1745348834766,11.77345524,1698.8,1698.5,5.4891297]
[1745348835024,10.42521825,1699.2,1698.6,0.8275]
[1745348835233,4.5399099,1699.2,1698.9,6.4472493]
[1745348835383,4.5399099,1699.2,1699.0,0.8275]
[1745348836729,10.4251923,1699.2,1698.9,5.9195]
[1745348836909,1.04251923,1699.1,1698.9,5.9195]
[1745348837100,4.5399099,1699.2,1698.9,5.9195]
[1745348837619,4.5399099,1699.2,1698.9,0.8275]
[1745348838715,4.5399099,1699.2,1698.9,5.9195]
[1745348839120,4.5399099,1699.2,1698.9,0.8275]
[1745348839331,4.5399099,1699.2,1698.9,5.9195]
[1745348839537,11.46761824,1699.2,1698.9,5.9195]
[1745348839919,11.46761824,1699.2,1698.9,0.8275]
[1745348840399,5.58237966,1699.2,1698.9,0.8275]
[1745348840735,4.5399099,1699.2,1698.9,0.8275]
[1745348841430,4.5399099,1699.2,1699.0,0.55]
[1745348841638,4.5399099,1699.4,1699.0,0.55]
[1745348841996,5.88477678,1699.3,1699.0,0.55]
[1745348842737,10.42453621,1699.4,1699.0,0.55]
[1745348842938,11.54751983,1699.4,1699.0,0.55]
[1745348843411,5.88477953,1699.3,1699.0,0.55]
[1745348843611,11.54751983,1699.4,1699.0,0.55]
[1745348844012,11.54751983,1699.4,1698.9,0.8275]
[1745348844206,5.66289352,1699.4,1699.0,0.55]
[1745348844410,1.12298362,1699.4,1699.0,0.55]
[1745348844608,5.3452099,1699.7,1699.3,0.8275]
[1745348844824,4.5399099,1699.7,1699.3,3.8275]
[1745348845227,4.5399099,1699.7,1699.4,0.55]
[1745348845551,11.22805747,1699.9,1699.4,0.55]
[1745348845733,5.8830914,1699.8,1699.4,0.55]
[1745348845928,18.85274834,1699.9,1699.4,0.55]
[1745348846146,5.88314651,1699.8,1699.4,0.55]
[1745348847629,4.5399099,1699.9,1699.5,0.7792]
[1745348847853,4.5399099,1699.9,1699.6,0.55]
[1745348848040,4.5399099,1699.9,1699.6,5.641]
[1745348848227,4.5399099,1699.9,1699.7,1.3433]
[1745348849126,10.42277994,1699.9,1699.7,0.7792]
[1745348849331,10.42277994,1699.9,1699.7,5.8702]
[1745348849662,4.5399099,1699.9,1699.7,5.8702]
[1745348849964,4.5399099,1699.9,1699.7,0.7792]
[1745348849965,10.42263556,1699.9,1699.7,0.7792]
[1745348850140,1.04226356,1699.8,1699.6,5.091]
[1745348850341,4.5399099,1699.9,1699.6,5.091]
[1745348850662,10.42274443,1699.9,1699.6,5.091]
[1745348850864,4.5399099,1699.9,1699.6,5.091]
[1745348851959,6.67941791,1700.1,1699.7,0.55]
[1745348852338,10.72862281,1700.2,1699.8,0.7792]
[1745348852733,4.84679172,1700.2,1699.8,0.7792]
[1745348852960,4.5399099,1700.2,1699.8,0.7792]
[1745348853262,4.5399099,1700.2,1699.8,1.80633693]
[1745348853866,4.5399099,1700.2,1699.9,0.55]
[1745348854051,4.5399099,1700.2,1699.9,0.60882445]
[1745348854633,4.5399099,1700.2,1700.0,0.7792]
[1745348855572,4.5399099,1700.4,1700.0,5.9280203]
[1745348855786,4.5399099,1700.4,1700.0,5.8692]
[1745348855949,4.5399099,1700.4,1700.0,6.51112]
[1745348856153,5.88134416,1700.3,1700.0,6.51112]
[1745348856551,10.42117711,1700.4,1700.0,6.51112]
[1745348860778,10.4211655,1700.4,1700.0,5.8692]
[1745348860962,5.88131506,1700.3,1699.8,3.0]
[1745348861175,5.88181256,1700.2,1699.9,5.09]
[1745348861503,10.42096221,1700.4,1700.0,0.8085]
[1745348861504,10.42100442,1700.4,1700.0,0.8085]
[1745348862151,11.76304155,1700.3,1700.0,0.8085]
[1745348862391,5.8814211,1700.3,1700.0,0.8085]
[1745348862891,11.57359766,1700.4,1700.0,0.8085]
[1745348863087,17.4548066,1700.4,1700.0,0.8085]
[1745348863291,11.57359766,1700.4,1700.0,0.8085]
[1745348863591,17.45485528,1700.4,1700.0,0.8085]